bitfinex/quotes_ETHUSD_20240820
["timestamp","ask_amount","ask_price","bid_price","bid_amount"]
[1724121583863,3.074959,2654.1,2654.0,0.20710353]
[1724121584239,3.074959,2654.1,2653.6,5.04636]
[1724121584443,3.074959,2654.1,2654.0,0.20701657]
[1724121584646,3.074959,2654.1,2653.6,8.81475]
[1724121584843,3.074959,2654.1,2654.0,0.20701657]
[1724121585181,3.074959,2654.1,2653.6,5.04636]
[1724121585470,3.074959,2654.1,2653.7,3.9754543]
[1724121585764,2.4529,2654.1,2653.7,3.9754543]
[1724121586462,2.4529,2654.1,2653.8,3.76815]
[1724121586891,2.4529,2654.1,2653.9,0.20708247]
[1724121590474,6.18231,2654.3,2653.9,0.20708247]
[1724121591883,2.4148,2654.1,2653.9,0.20708247]
[1724121592095,7.177543,2654.1,2653.9,0.20708247]
[1724121592410,2.4148,2654.0,2653.7,3.76831]
[1724121592818,6.18276,2654.0,2653.6,1.278]
[1724121593102,2.3895,2653.7,2653.4,1.278]
[1724121593451,2.3895,2653.4,2652.9,3.76939]
[1724121593651,2.3895,2653.4,2653.0,4.58696136]
[1724121593891,2.3895,2653.4,2653.1,5.04713]
[1724121594091,2.3895,2653.4,2653.1,6.01056078]
[1724121594395,2.389,2653.7,2653.3,5.04678]
[1724121594797,2.389,2653.7,2653.3,8.81559]
[1724121595113,2.389,2653.7,2653.5,5.04657]
[1724121595267,2.4331,2653.9,2653.6,3.76839]
[1724121595698,2.4331,2653.9,2653.6,3.76833]
[1724121596187,2.4331,2653.9,2653.8,3.76818]
[1724121596595,2.4331,2653.9,2653.7,5.04627]
[1724121597778,2.4331,2653.9,2653.7,3.76827]
[1724121597979,2.4331,2653.9,2653.8,0.20730773]
[1724121598267,2.4331,2653.9,2653.7,3.76827]
[1724121598493,2.4331,2653.9,2653.8,0.20730773]
[1724121598801,2.4331,2653.9,2653.7,3.76827]
[1724121599010,2.4331,2653.9,2653.8,3.97548773]
[1724121600471,2.4331,2653.9,2653.8,0.20730773]
[1724121600805,2.4331,2653.9,2653.7,3.76828]
[1724121600983,2.4331,2653.9,2653.8,0.20730773]
[1724121601185,2.4331,2653.9,2653.7,3.76828]
[1724121601399,2.4331,2653.9,2653.8,0.20730773]
[1724121601599,2.4331,2653.9,2653.7,3.76828]
[1724121601932,2.4331,2653.9,2653.8,0.20730773]
[1724121602350,2.4331,2653.9,2653.7,3.76828]
[1724121602506,2.4331,2653.9,2653.8,0.20730773]
[1724121602691,2.4331,2653.9,2653.7,3.76828]
[1724121602893,2.4331,2653.9,2653.8,0.20730773]
[1724121603153,6.44444,2653.9,2653.8,0.20730773]
[1724121603426,2.67641,2653.9,2653.8,0.20730773]
[1724121603633,2.67641,2653.9,2653.5,3.76853]
[1724121603832,2.4331,2653.9,2653.8,0.20730773]
[1724121604037,2.4331,2653.9,2653.6,1.278]
[1724121604232,6.20113,2653.9,2653.8,0.20730773]
[1724121604430,6.20113,2653.9,2653.7,0.20737365]
[1724121604638,7.19804,2653.9,2653.7,0.20737365]
[1724121604932,6.03008,2653.8,2653.7,0.20737365]
[1724121605298,6.23022,2653.7,2653.3,7.38]
[1724121605719,2.4618,2653.7,2653.4,1.278]
[1724121606516,2.4618,2653.7,2653.4,5.04664]
[1724121607516,2.4618,2653.7,2653.5,3.7686]
[1724121607703,3.76799,2654.0,2653.6,5.04646]
[1724121607704,2.4857,2654.0,2653.6,5.04646]
[1724121611849,2.4857,2654.0,2653.7,3.76829]
[1724121612948,2.4857,2654.0,2653.8,0.20731137]
[1724121613317,2.4857,2654.0,2653.7,3.76829]
[1724121613519,2.4857,2654.0,2653.9,0.20724546]
[1724121614016,2.4857,2654.0,2653.7,3.76829]
[1724121614219,2.4857,2654.0,2653.8,0.20731137]
[1724121614434,2.4857,2654.0,2653.7,3.76829]
[1724121614616,2.4857,2654.0,2653.9,0.20724546]
[1724121614923,3.76761,2654.2,2653.9,3.76798]
[1724121614924,2.3994,2654.2,2653.9,3.76798]
[1724121615125,2.3994,2654.4,2654.2,3.7676]
[1724121615326,2.3994,2654.4,2654.0,9.318248]
[1724121615533,2.3994,2654.4,2654.3,0.20698186]
[1724121615721,2.3994,2654.4,2654.1,3.76774]
[1724121615920,2.3994,2654.4,2654.3,0.20690218]
[1724121616149,2.3994,2654.4,2654.2,0.20696807]
[1724121616458,2.3994,2654.4,2654.3,0.20690218]
[1724121616978,2.3994,2654.4,2654.1,3.76774]
[1724121617120,2.3994,2654.4,2654.3,0.20690218]
[1724121617315,2.3994,2654.4,2654.2,0.20696807]
[1724121617538,2.3994,2654.4,2654.3,0.20690218]
[1724121617915,2.4404,2654.7,2654.2,5.04561]
[1724121618118,5.4404,2654.7,2654.3,0.20690218]
[1724121618319,2.4404,2654.7,2654.4,1.278]
[1724121618754,2.4404,2654.7,2654.5,0.20677041]
[1724121619437,2.4037,2655.1,2654.6,1.278]
[1724121619640,2.4037,2655.1,2654.6,5.045]
[1724121619813,2.4037,2655.1,2654.7,0.20647208]
[1724121620018,6.17006,2655.1,2654.7,0.20647208]
[1724121622230,2.4037,2655.1,2654.7,0.20647208]
[1724121622649,3.0215504,2655.1,2654.7,0.20647208]
[1724121622850,3.76671,2654.9,2654.7,0.20647208]
[1724121623036,2.4642,2654.8,2654.4,1.278]
[1724121623251,2.4642,2654.8,2654.5,0.20645179]
[1724121624255,2.3748,2655.0,2654.6,3.76696]
[1724121624590,2.3748,2655.0,2654.6,5.04496]
[1724121624728,2.3748,2655.0,2654.7,0.20632004]
[1724121625262,2.988921,2655.0,2654.7,0.20632004]
[1724121625678,6.755481,2655.0,2654.7,0.20632004]
[1724121625880,2.988921,2655.0,2654.7,0.20632004]
[1724121626036,6.1415,2654.9,2654.4,3.76725]
[1724121626426,6.1415,2654.9,2654.5,0.20645179]
[1724121626630,7.1937021,2654.9,2654.5,0.20645179]
[1724121627083,6.14156,2654.8,2654.5,0.20645179]
[1724121627295,2.3748,2654.8,2654.5,0.20645179]
[1724121627562,2.3748,2654.8,2654.4,3.76732]
[1724121627766,2.3748,2654.8,2654.6,0.20638591]
[1724121627954,2.3748,2654.8,2654.5,1.48414762]
[1724121628151,2.3748,2654.8,2654.7,0.20601587]
[1724121628417,2.92089361,2654.8,2654.7,0.20601587]
[1724121628712,2.92089361,2654.8,2654.5,1.278]
[1724121628997,2.92089361,2654.8,2654.6,0.20608174]
[1724121630403,2.3748,2654.8,2654.6,0.20608174]
[1724121631681,2.3748,2654.8,2654.4,5.04531]
[1724121631877,2.3748,2654.8,2654.7,0.2447779]
[1724121632105,2.3748,2654.8,2654.4,5.04531]
[1724121632298,2.3748,2654.8,2654.7,0.2447779]
[1724121632503,2.3748,2654.8,2654.4,8.81256]
[1724121632695,2.3748,2654.8,2654.7,0.2447779]
[1724121633073,2.3748,2654.8,2654.4,5.04525]
[1724121633403,2.3748,2654.8,2654.7,0.2447779]
[1724121633602,2.3748,2654.8,2654.4,5.04525]
[1724121633808,2.3748,2654.8,2654.7,0.2447779]
[1724121634002,2.3748,2654.8,2654.4,8.8125]
[1724121634205,2.3748,2654.8,2654.7,0.2447779]
[1724121634396,2.3748,2654.8,2654.5,3.76717]
[1724121634592,2.3748,2654.8,2654.7,0.2447779]
[1724121634797,3.76639,2655.1,2654.7,3.7669]
[1724121634798,2.4442,2655.0,2654.7,3.7669]
[1724121634997,2.4442,2655.0,2654.7,4.0116779]
[1724121635729,2.4442,2655.0,2654.8,5.04469]
[1724121635925,2.4442,2655.0,2654.8,7.77808057]
[1724121636170,2.4442,2655.0,2654.8,4.01139057]
[1724121636986,2.4442,2655.0,2654.8,0.24471057]
[1724121637191,3.741875,2655.0,2654.8,0.24471057]
[1724121637433,3.741875,2655.0,2654.6,3.76696]
[1724121637607,3.741875,2655.0,2654.9,0.24464325]
[1724121638118,3.741875,2655.0,2654.6,3.76696]
[1724121638315,3.741875,2655.0,2654.9,0.24464325]
[1724121638533,3.741875,2655.0,2654.6,3.76696]
[1724121638839,6.17854,2654.8,2654.2,5.0455]
[1724121639013,6.17854,2654.8,2654.3,3.76733]
[1724121639223,2.4117,2654.8,2654.2,5.0455]
[1724121639535,2.4117,2654.8,2654.4,3.76725]
[1724121639736,3.61104585,2654.8,2654.4,5.04525]
[1724121640502,7.37782585,2654.8,2654.4,5.04525]
[1724121640834,7.37782585,2654.8,2654.2,5.0455]
[1724121640835,6.0862,2654.7,2654.2,5.0455]
[1724121641199,2.3192,2654.7,2654.4,3.76731]
[1724121641401,2.3192,2654.7,2654.4,5.04531]
[1724121641600,2.3192,2654.7,2654.5,3.76716]
[1724121642102,2.3192,2654.7,2654.4,5.04532]
[1724121642941,2.3192,2654.7,2654.5,0.24489233]
[1724121643947,2.3192,2654.7,2654.3,7.53483]
[1724121644133,2.3192,2654.7,2654.6,0.244825]
[1724121644339,2.3192,2654.7,2654.4,3.76732]
[1724121644547,2.3192,2654.7,2654.6,0.244825]
[1724121645048,2.3192,2654.7,2654.4,3.76732]
[1724121645230,2.3192,2654.7,2654.5,0.24489233]
[1724121646866,6.08612,2654.7,2654.6,0.244825]
[1724121647060,10.808314,2654.7,2654.1,3.76774]
[1724121647272,10.808314,2654.7,2654.2,0.24509438]
[1724121647273,6.05631,2654.6,2654.2,0.24509438]
[1724121647563,2.3852,2654.4,2654.2,0.24509438]
[1724121647772,2.3852,2654.4,2654.0,5.04589]
[1724121647972,2.3852,2654.4,2654.3,0.24502702]
[1724121648281,3.377154,2654.4,2654.3,0.24502702]
[1724121648570,2.4698,2654.3,2653.6,7.60233013]
[1724121648771,2.4698,2654.1,2653.7,0.81768078]
[1724121649070,3.76769,2654.2,2653.6,5.11197013]
[1724121649071,2.4698,2653.9,2653.6,0.06564013]
[1724121649369,2.4698,2653.9,2653.5,3.76852]
[1724121649663,2.4698,2653.9,2653.6,3.76845]
[1724121649964,2.4698,2653.9,2653.5,3.76852]
[1724121650127,2.4698,2653.9,2653.6,3.76839]
[1724121650332,2.4698,2653.9,2653.6,5.04639]
[1724121650534,2.4698,2653.9,2653.7,3.76832]
[1724121651009,2.4698,2653.9,2653.7,7.53664]
[1724121651153,5.3791,2654.1,2653.8,1.278]
[1724121653287,5.3791,2654.1,2653.9,3.76797]
[1724121653288,2.3791,2654.1,2653.9,3.76797]
[1724121657863,2.3791,2654.1,2654.0,0.24568889]
[1724121658514,2.3791,2654.1,2653.8,5.04617]
[1724121658825,2.3791,2654.1,2654.0,0.24568889]
[1724121658986,2.3791,2654.1,2653.9,4.01376626]
[1724121659183,2.3791,2654.1,2654.0,0.24568889]
[1724121659819,2.2825,2654.3,2654.0,1.52368889]
[1724121660483,2.2825,2654.3,2654.0,5.29155889]
[1724121663139,6.05002,2654.3,2654.0,0.24568889]
[1724121663300,6.05002,2654.3,2653.9,1.278]
[1724121663498,6.05002,2654.3,2654.1,0.24562153]
[1724121663700,4.749247,2654.3,2653.9,1.278]
[1724121663897,2.4951,2654.2,2653.9,5.04603]
[1724121665340,2.4951,2654.2,2654.0,3.76788]
[1724121665504,2.4951,2654.2,2653.9,5.04603]
[1724121666137,2.4951,2654.2,2653.8,3.76813]
[1724121666339,2.4951,2654.2,2653.9,5.04601]
[1724121666639,2.4951,2654.2,2654.0,3.76786]
[1724121666847,2.4951,2654.2,2653.9,5.550541]
[1724121667139,2.4474,2654.4,2653.9,1.782601]
[1724121667339,2.4474,2654.4,2654.1,5.0457]
[1724121669037,2.4474,2654.4,2653.9,0.504601]
[1724121669038,2.4474,2654.7,2654.3,1.278]
[1724121669238,2.4474,2654.7,2654.4,3.76726]
[1724121669455,2.4474,2654.7,2654.3,5.04534]
[1724121669641,2.4474,2654.7,2654.5,0.24520005]
[1724121669813,2.3756,2654.5,2654.4,0.24526739]
[1724121670009,2.3756,2654.5,2654.1,1.278]
[1724121670225,2.3756,2654.5,2654.1,5.04573]
[1724121671143,3.76719,2654.5,2654.1,1.278]
[1724121671308,2.413,2654.4,2654.1,1.278]
[1724121672904,2.413,2654.4,2654.2,0.24541657]
[1724121673320,3.031019,2654.4,2654.2,0.24541657]
[1724121673550,6.18047,2654.3,2653.8,3.76809]
[1724121673714,3.76747,2654.3,2653.8,3.76809]
[1724121673909,3.76747,2654.3,2653.3,11.14886]
[1724121673910,3.76789,2654.0,2653.4,7.95219803]
[1724121674134,2.413,2653.9,2653.5,1.278]
[1724121674810,2.413,2653.9,2653.7,1.278]
[1724121675729,2.413,2653.9,2653.5,1.278]
[1724121675943,2.413,2653.9,2653.3,8.658]
[1724121675944,6.09217,2653.8,2653.3,8.658]
[1724121676108,2.3239,2653.7,2653.3,12.42688]
[1724121677134,2.3239,2653.7,2653.3,5.04688]
[1724121681535,2.3239,2653.7,2653.3,8.81568]
[1724121683035,2.3239,2653.7,2653.4,3.76872]
[1724121686240,2.3239,2653.7,2653.5,3.7686]
[1724121686842,2.3239,2653.7,2653.5,5.0466]
[1724121688181,2.3239,2653.7,2653.6,0.24590773]
[1724121693643,2.4647,2654.1,2653.9,3.76792]
[1724121693847,2.4647,2654.1,2653.9,5.04592]
[1724121694147,2.4647,2654.1,2654.0,0.24593882]
[1724121697911,2.4647,2654.1,2654.0,4.01382882]
[1724121698213,2.4647,2654.1,2654.0,0.24593882]
[1724121699389,6.855668,2654.1,2654.0,0.24593882]
[1724121699710,6.855668,2654.1,2653.7,1.278]
[1724121699878,6.23245,2654.1,2654.0,0.24582292]
[1724121700078,6.23245,2654.1,2653.7,5.0463]
[1724121700273,6.23245,2654.1,2654.0,0.24582292]
[1724121700523,6.23245,2654.1,2653.7,5.0463]
[1724121700678,6.23245,2654.1,2654.0,0.24582292]
[1724121701006,2.4647,2654.1,2654.0,0.24582292]
[1724121701179,2.4397,2654.3,2654.0,4.01368292]
[1724121701377,2.4397,2654.3,2654.2,3.76761]
[1724121701597,2.4397,2654.3,2654.2,4.0132982]
[1724121701878,2.4397,2654.5,2654.2,4.0132982]
[1724121708648,7.204276,2654.5,2654.2,0.2456882]
[1724121708826,2.3709,2654.3,2654.2,0.2456882]
[1724121709214,6.13838,2654.3,2653.9,5.04602]
[1724121709415,6.13838,2654.3,2654.0,0.24559838]
[1724121715271,2.2752,2654.2,2654.0,0.24559838]
[1724121715651,6.04281,2654.2,2654.0,0.24559838]
[1724121716552,2.2752,2654.2,2654.0,0.24559838]
[1724121722480,2.2752,2654.2,2654.0,4.01345838]
[1724121723982,2.4064,2654.5,2654.1,5.04568]
[1724121724185,2.4064,2654.5,2654.2,4.01303796]
[1724121725196,2.4064,2654.5,2654.3,5.0454]
[1724121725412,2.4064,2654.5,2654.4,4.01269602]
[1724121725923,3.0,2654.8,2654.4,4.01269602]
[1724121725924,2.4687,2654.7,2654.4,4.01269602]
[1724121726468,2.4687,2654.9,2654.7,3.76689]
[1724121726674,2.4687,2654.9,2654.7,5.04489]
[1724121726979,2.4687,2654.9,2654.8,0.2450053]
[1724121731012,2.4687,2654.9,2654.8,0.24497633]
[1724121731207,2.4687,2654.9,2654.6,3.76704]
[1724121731415,2.4687,2654.9,2654.7,0.24504366]
[1724121732095,2.75289105,2655.1,2654.7,1.52304366]
[1724121732992,6.51923105,2655.1,2654.7,1.52304366]
[1724121733404,2.75289105,2655.1,2654.7,1.52304366]
[1724121733775,2.75289105,2655.1,2654.7,5.28993366]
[1724121734091,6.51924105,2655.1,2654.7,1.52304366]
[1724121734293,1.0285451,2655.0,2654.7,1.52304366]
[1724121734815,6.51924105,2655.1,2654.7,1.52304366]
[1724121735320,2.75289105,2655.1,2654.7,1.52304366]
[1724121736891,2.75289105,2655.1,2654.7,5.28992366]
[1724121738818,0.41129105,2655.1,2655.0,3.76647]
[1724121738990,0.41129105,2655.1,2655.0,8.89752093]
[1724121741544,0.41129105,2655.1,2655.0,11.22962093]
[1724121742351,0.41129105,2655.1,2655.0,12.50762093]
[1724121742718,0.41129105,2655.1,2655.0,11.22962093]
[1724121742951,0.41129105,2655.1,2655.0,12.50762093]
[1724121745647,0.41129105,2655.1,2655.0,5.13105093]
[1724121745860,0.41129105,2655.1,2655.0,5.28903293]
[1724121746054,0.41129105,2655.1,2655.0,9.05550293]
[1724121750051,0.41129105,2655.1,2655.0,12.82197293]
[1724121750258,0.41129105,2655.1,2655.0,9.05550293]
[1724121750457,0.41129105,2655.1,2655.0,12.82197293]
[1724121750658,0.41129105,2655.1,2655.0,10.58493022]
[1724121750959,0.41129105,2655.1,2655.0,14.35140022]
[1724121752058,0.41129105,2655.1,2655.0,16.75180022]
[1724121753966,0.41129105,2655.1,2655.0,9.30693022]
[1724121754173,0.41129105,2655.1,2655.0,14.35140022]
[1724121754335,0.41129105,2655.1,2655.0,10.58493022]
[1724121754534,0.41129105,2655.1,2655.0,14.35140022]
[1724121755235,0.41129105,2655.1,2655.0,15.16844357]
[1724121755435,0.41129105,2655.1,2655.0,14.35140022]
[1724121755637,0.41129105,2655.1,2655.0,15.16844357]
[1724121755831,0.41129105,2655.1,2655.0,17.47344357]
[1724121756147,0.41129105,2655.1,2655.0,13.70697357]
[1724121756573,0.41129105,2655.1,2655.0,13.70686906]
[1724121756770,0.41129105,2655.1,2655.0,10.12386906]
[1724121756995,0.41129105,2655.1,2655.0,10.58493022]
[1724121757498,0.41129105,2655.1,2655.0,11.40186906]
[1724121757688,0.41129105,2655.1,2655.0,15.16833906]
[1724121757894,0.41129105,2655.1,2655.0,11.40186906]
[1724121758785,2.79339105,2655.1,2655.0,4.01103293]
[1724121758984,2.79339105,2655.1,2655.0,5.28903293]
[1724121759701,2.79339105,2655.1,2655.0,0.24456293]
[1724121769273,6.55983105,2655.1,2654.6,5.04496]
[1724121769474,2.4446,2654.9,2654.6,5.04496]
[1724121771174,2.4446,2654.9,2654.6,8.81192]
[1724121771422,0.41129105,2655.1,2654.8,1.278]
[1724121771738,2.4426,2655.0,2654.8,3.76675]
[1724121772802,0.41129105,2655.1,2655.0,3.76647]
[1724121776348,0.41129105,2655.1,2654.9,1.278]
[1724121776519,2.3603,2655.0,2654.9,1.278]
[1724121777855,2.3603,2655.0,2654.9,1.52228283]
[1724121778029,2.3603,2655.0,2654.9,5.28890283]
[1724121786336,2.3603,2655.0,2654.9,0.24428283]
[1724121786555,2.3603,2655.0,2654.9,4.01090283]
[1724121787069,2.3603,2655.0,2654.9,5.28890283]
[1724121787267,2.63745911,2655.0,2654.9,0.24428283]
[1724121787468,2.3412,2654.9,2654.6,1.278]
[1724121787768,2.3412,2654.9,2654.7,0.24443195]
[1724121787968,3.02081202,2654.9,2654.7,0.24443195]
[1724121788836,2.2679,2654.8,2654.7,0.24443195]
[1724121789437,2.2679,2654.8,2654.5,7.38]
[1724121789636,2.2679,2654.8,2654.6,0.24449928]
[1724121790259,2.4146,2654.7,2654.1,4.18248851]
[1724121790557,2.4146,2654.6,2654.2,6.10016261]
[1724121790781,2.4146,2654.6,2654.2,0.2370259]
[1724121790969,2.4146,2654.6,2654.2,1.5150259]
[1724121791168,2.3411,2654.5,2654.2,1.5150259]
[1724121792093,2.3411,2654.5,2654.2,5.2825859]
[1724121792293,2.3411,2654.5,2654.4,1.278]
[1724121792495,2.3411,2654.5,2654.4,5.04532]
[1724121792685,7.04374911,2655.0,2654.4,5.282344]
[1724121792686,2.4229,2654.8,2654.4,5.282344]
[1724121792887,2.4229,2654.8,2654.6,1.278]
[1724121793359,2.4229,2654.8,2654.7,0.2368184]
[1724121793561,3.918952,2654.8,2654.7,0.2368184]
[1724121793865,2.2753,2654.7,2654.4,5.04532]
[1724121796103,2.2753,2654.7,2654.4,1.278]
[1724121796307,2.2753,2654.7,2654.4,5.04532]
[1724121796976,2.2753,2654.7,2654.4,1.278]
[1724121797165,3.2713872,2654.7,2654.4,1.278]
[1724121797362,3.2713872,2654.7,2654.4,5.04531]
[1724121797986,2.4623,2654.6,2654.4,1.278]
[1724121798999,2.4623,2654.6,2654.3,3.7674]
[1724121799167,2.4623,2654.5,2654.1,0.81760348]
[1724121799520,2.4623,2654.3,2654.1,1.278]
[1724121801761,2.4623,2654.3,2654.1,5.04572]
[1724121801962,2.4623,2654.3,2654.1,8.81338]
[1724121802198,2.4623,2654.3,2654.1,5.04566]
[1724121803459,2.4623,2654.3,2654.1,8.81333]
[1724121803762,2.4623,2654.3,2654.1,5.04566]
[1724121807381,2.4623,2654.3,2654.1,5.04565]
[1724121807981,2.4623,2654.3,2654.2,0.23726278]
[1724121814413,6.676418,2654.3,2654.2,0.23726278]
[1724121814720,6.676418,2654.3,2653.8,1.278]
[1724121814721,3.76761,2654.2,2653.8,1.278]
[1724121814922,2.286,2654.1,2653.8,5.04616]
[1724121815927,2.286,2654.1,2653.8,1.278]
[1724121816919,2.286,2654.1,2653.7,3.76829]
[1724121817084,2.891361,2654.1,2653.7,5.04629]
[1724121817285,2.286,2654.1,2653.8,3.76818]
[1724121817490,2.286,2654.1,2653.9,5.04601]
[1724121818614,2.286,2654.1,2653.7,1.278]
[1724121819096,2.286,2654.1,2653.7,5.04631]
[1724121819297,2.286,2654.1,2653.9,1.278]
[1724121820331,2.891358,2654.1,2653.8,3.76809]
[1724121820682,2.3631,2654.0,2653.7,5.04624]
[1724121820882,2.3631,2654.0,2653.7,1.278]
[1724121822915,2.3631,2654.0,2653.8,0.23774048]
[1724121823116,2.3631,2653.9,2653.5,3.76858]
[1724121823323,2.3631,2653.8,2653.5,3.76858]
[1724121823497,2.3631,2653.8,2653.6,0.23790756]
[1724121825822,2.3631,2653.8,2653.6,1.51590756]
[1724121831703,2.3631,2653.8,2653.6,5.28434756]
[1724121836741,2.3631,2653.8,2653.6,1.51590756]
[1724121836958,5.4847,2654.0,2653.6,5.28428756]
[1724121837123,3.409939,2654.0,2653.6,5.28428756]
[1724121837448,7.177899,2654.0,2653.6,1.51590756]
[1724121838641,4.693199,2654.0,2653.6,1.51590756]
[1724121838809,2.4847,2653.9,2653.6,1.51590756]
[1724121840164,2.4847,2653.9,2653.6,5.28436756]
[1724121841532,2.4847,2653.9,2653.6,1.51590756]
[1724121842147,2.4847,2653.9,2653.6,5.28429756]
[1724121846897,5.4998,2654.1,2653.8,1.278]
[1724121847071,2.4998,2654.1,2653.8,1.278]
[1724121847277,2.4998,2654.1,2653.9,0.23794959]
[1724121847899,2.4998,2654.1,2653.7,3.7682]
[1724121848086,2.4998,2654.1,2654.0,0.23786067]
[1724121848263,3.8033,2654.1,2654.0,0.23786067]
[1724121848466,6.8033,2654.1,2653.7,3.7682]
[1724121848799,5.4998,2654.1,2653.7,3.7682]
[1724121848966,5.4998,2654.1,2653.8,0.23799541]
[1724121849165,5.4998,2654.1,2653.7,3.7682]
[1724121849394,3.0,2654.1,2653.9,0.23792804]
[1724121849558,2.3872,2654.0,2653.7,3.7682]
[1724121849762,2.3872,2654.0,2653.8,0.23799541]
[1724121849957,2.3872,2654.0,2653.7,3.7682]
[1724121850206,2.3872,2654.0,2653.8,0.23799541]
[1724121850370,2.3872,2654.0,2653.7,3.7682]
[1724121850571,2.3872,2654.0,2653.9,0.23792804]
[1724121850811,2.3872,2654.0,2653.7,3.7682]
[1724121851106,2.3872,2654.0,2653.9,0.23792804]
[1724121851265,2.3872,2654.0,2653.8,0.23799541]
[1724121851466,2.3872,2654.0,2653.9,0.23792804]
[1724121851864,2.3872,2654.0,2653.7,3.7682]
[1724121852067,2.3872,2654.0,2653.9,0.23792804]
[1724121852297,2.3872,2654.0,2653.8,0.23799541]
[1724121852504,2.3872,2654.0,2653.9,0.23792804]
[1724121852868,2.87849273,2654.0,2653.7,3.7682]
[1724121853069,2.87849273,2654.0,2653.9,0.23790647]
[1724121853302,2.87849273,2654.0,2653.7,3.7682]
[1724121853303,2.87849273,2654.0,2653.8,0.23797385]
[1724121853511,2.3872,2654.0,2653.9,0.23790647]
[1724121853873,2.3872,2654.0,2653.7,3.7682]
[1724121854202,2.3872,2654.0,2653.8,0.23797385]
[1724121854395,2.3872,2654.0,2653.7,3.7682]
[1724121854594,2.3872,2654.0,2653.9,0.23790647]
[1724121854791,2.3872,2654.0,2653.7,3.7682]
[1724121854993,2.3872,2654.0,2653.9,0.23790647]
[1724121855301,2.3872,2654.0,2653.6,1.278]
[1724121855302,7.070645,2654.0,2653.6,1.278]
[1724121855471,7.070645,2654.0,2653.9,0.23790647]
[1724121855672,7.070645,2654.0,2653.6,1.278]
[1724121856205,7.070645,2654.0,2653.7,0.23804122]
[1724121860426,6.15515,2654.0,2653.7,0.23804122]
[1724121867138,2.3865,2653.9,2653.7,0.23804122]
[1724121867631,2.3865,2653.9,2653.5,3.76851]
[1724121867814,2.3865,2653.9,2653.8,0.23798465]
[1724121868019,2.3865,2653.9,2653.5,3.76851]
[1724121868217,2.3865,2653.9,2653.8,0.23799542]
[1724121868398,2.3865,2653.9,2653.5,3.76851]
[1724121868600,2.3865,2653.9,2653.8,0.23799542]
[1724121868930,3.27311773,2653.9,2653.5,3.76851]
[1724121869157,2.3865,2653.9,2653.8,0.23799542]
[1724121869325,2.3865,2653.9,2653.5,3.76851]
[1724121869326,2.3865,2653.9,2653.5,7.53705]
[1724121869648,2.3865,2653.9,2653.6,1.23272752]
[1724121869957,2.3865,2653.9,2653.6,0.23813018]
[1724121870650,2.3865,2653.9,2653.6,1.51613018]
[1724121871659,2.3865,2653.9,2653.7,1.23270099]
[1724121871866,2.3865,2653.9,2653.7,0.2380628]
[1724121875744,2.3581,2654.3,2653.9,3.76797]
[1724121875951,2.3581,2654.3,2654.0,5.04581]
[1724121876124,2.3581,2654.3,2654.0,5.2836635]
[1724121877676,2.3581,2654.3,2654.0,0.2378535]
[1724121878040,2.3581,2654.3,2654.0,4.0057135]
[1724121887678,2.3581,2654.3,2654.2,3.76761]
[1724121888057,2.3581,2654.3,2654.2,0.23748537]
[1724121888791,2.3581,2654.3,2654.2,4.00509537]
[1724121889585,2.3581,2654.3,2654.2,0.23748537]
[1724121892209,2.3581,2654.3,2654.2,4.00509537]
[1724121892725,2.4204,2654.7,2654.2,2.53362904]
[1724121892928,2.4204,2654.7,2654.4,8.8125]
[1724121893234,2.4204,2654.7,2654.5,0.23724742]
[1724121893780,5.4204,2654.7,2654.5,0.23724742]
[1724121894215,5.4204,2654.7,2654.3,3.76747]
[1724121894396,5.4204,2654.7,2654.6,0.23718009]
[1724121894618,6.715782,2654.7,2654.3,3.76747]
[1724121894811,5.4204,2654.7,2654.6,0.23718009]
[1724121895014,5.4204,2654.7,2654.3,3.76747]
[1724121895330,5.4204,2654.7,2654.6,0.23718009]
[1724121895511,5.4204,2654.7,2654.3,3.76747]
[1724121895701,5.4204,2654.7,2654.6,0.23718009]
[1724121895878,6.715782,2654.7,2654.3,3.76747]
[1724121896197,4.295382,2654.7,2654.3,3.76747]
[1724121896380,2.3468,2654.6,2654.4,0.23731477]
[1724121900505,2.3468,2654.6,2654.4,4.00462477]
[1724121902271,2.4098,2655.0,2654.5,3.76718]
[1724121902410,2.4098,2654.8,2654.5,0.23709662]
[1724121903595,2.4111,2654.6,2654.2,5.04552]
[1724121903919,2.4111,2654.6,2654.2,8.81305]
[1724121904666,2.4111,2654.6,2654.3,3.76747]
[1724121905195,2.4111,2654.6,2654.5,3.76718]
[1724121906878,2.4111,2654.6,2654.4,5.04532]
[1724121907899,2.4111,2654.6,2654.4,3.76732]
[1724121912008,2.4111,2654.6,2654.4,5.04526]
[1724121912315,2.3175,2654.8,2654.4,5.04526]
[1724121912659,2.3175,2654.8,2654.6,1.278]
[1724121912878,2.3175,2654.8,2654.6,5.0449]
[1724121913109,6.08384,2655.1,2654.7,0.23113127]
[1724121913901,2.3175,2655.1,2654.8,1.278]
[1724121914188,3.0,2655.2,2654.9,3.76655]
[1724121914505,2.326034,2655.3,2655.0,0.23082943]
[1724121914506,6.092114,2655.3,2655.0,0.23082943]
[1724121914707,9.092114,2655.3,2655.0,0.23082943]
[1724121914910,9.092114,2655.3,2654.8,5.04475]
[1724121915104,9.092114,2655.3,2655.1,0.23076212]
[1724121915406,10.3779114,2655.3,2654.8,5.04475]
[1724121915620,9.092114,2655.3,2655.2,0.23069481]
[1724121915905,9.092114,2655.3,2654.9,0.23089675]
[1724121916117,5.326034,2655.3,2654.8,5.04466]
[1724121916317,5.326034,2655.3,2655.0,0.23082943]
[1724121916498,5.326034,2655.3,2655.0,1.278]
[1724121916676,2.326034,2655.3,2655.1,0.23076212]
[1724121917173,2.326034,2655.3,2655.1,3.99702212]
[1724121918005,2.326034,2655.3,2655.1,0.23076212]